fUST/lending_fUST_20240909
["ID","MTS","AMOUNT","RATE_DAILY","PERIOD"]
[337574284,1725831051701,-500.0,0.00049315,120]
[337574285,1725831051710,-500.0,0.00049315,120]
[337574286,1725831051719,-500.0,0.00049315,120]
[337574287,1725831051729,-151.0,0.00049315,120]
[337574288,1725831051738,-500.0,0.00049315,120]
[337574289,1725831051748,-500.0,0.00049315,120]
[337574290,1725831051757,-327.499869,0.00049315,120]
[337574291,1725831051767,-500.0,0.00049315,120]
[337574292,1725831051776,-500.0,0.00049315,120]
[337574293,1725831051785,-475.27128082,0.00049315,120]
[337574294,1725831051795,-500.0,0.00049315,120]
[337574295,1725831051804,-500.0,0.00049315,120]
[337574296,1725831051813,-756.58,0.00049315,120]
[337574297,1725831051823,-500.0,0.00049315,120]
[337574298,1725831051834,-327.499869,0.00049315,120]
[337574299,1725831051844,-514.25015873,0.00049315,120]
[337574300,1725831051854,-1775.1,0.00049315,120]
[337574301,1725831051863,-500.0,0.00049315,2]
[337574302,1725831051872,-500.0,0.00049315,120]
[337574303,1725831051881,-500.0,0.00049315,120]
[337574304,1725831051891,-500.0,0.00049315,120]
[337574305,1725831051900,-500.0,0.00049315,120]
[337574306,1725831051910,-500.0,0.00049315,120]
[337574307,1725831051919,-631.99,0.00049315,120]
[337574308,1725831051928,-500.0,0.00049315,120]
[337574309,1725831051937,-230.91308,0.00049315,120]
[337574310,1725831051947,-500.0,0.00049315,120]
[337574311,1725831051956,-500.0,0.00049315,120]
[337574312,1725831051966,-1805.1,0.00049315,120]
[337574313,1725831051976,-230.91308,0.00049315,120]
[337574314,1725831051987,-506.21940367,0.00049315,120]
[337574315,1725831051997,-8783.93371258,0.00049315,120]
[337574316,1725831052013,-530.0,0.00049315,120]
[337574317,1725831054321,5000.0,0.0003002,2]
[337574318,1725831069743,5000.0,0.0003002,2]
[337574319,1725831084689,4143.74663692,0.0003002,2]
[337574320,1725831104185,-178.921371,0.00034182,2]
[337574321,1725831104212,-178.921371,0.00034539,2]
[337574322,1725831104239,-178.921371,0.00034895,2]
[337574323,1725831104266,-178.921371,0.00035251,2]
[337574324,1725831104293,-178.921371,0.00035607,2]
[337574325,1725831104320,-178.921371,0.00035964,2]
[337574326,1725831104347,-1539.83781038,0.0003693,2]
[337574327,1725831104375,-400.0,0.00037027,2]
[337574328,1725831104402,-193.0,0.00037027,30]
[337574329,1725831104435,-425.11656054,0.00037028,15]
[337574330,1725831104461,-500.0,0.00037028,15]
[337574331,1725831104488,-308.45638369,0.00037028,15]
[337574332,1725831104514,-500.0,0.00037028,15]
[337574333,1725831104542,-500.0,0.00037028,15]
[337574334,1725831104570,-500.0,0.00037028,15]
[337574335,1725831104600,-500.0,0.00037028,15]
[337574336,1725831104626,-575.0,0.00037028,15]
[337574337,1725831104654,-500.0,0.00037028,15]
[337574338,1725831104684,-500.0,0.00037028,15]
[337574339,1725831104729,-500.0,0.00037028,15]
[337574340,1725831104757,-500.0,0.00037028,15]
[337574341,1725831104786,-500.0,0.00037028,15]
[337574342,1725831104814,-500.0,0.00037028,15]
[337574343,1725831104843,-500.0,0.00037028,15]
[337574344,1725831104870,-500.0,0.00037028,15]
[337574345,1725831104898,-500.0,0.00037028,15]
[337574346,1725831104934,-500.0,0.00037028,15]
[337574347,1725831104963,-500.0,0.00037028,15]
[337574348,1725831104990,-500.0,0.00037028,15]
[337574349,1725831105019,-500.0,0.00037028,7]
[337574350,1725831105047,-500.0,0.00037028,15]
[337574351,1725831105076,-500.0,0.00037028,7]
[337574352,1725831105102,-500.0,0.00037028,15]
[337574353,1725831105133,-500.0,0.00037028,7]
[337574354,1725831105167,-500.0,0.00037028,15]
[337574355,1725831105195,-500.0,0.00037028,15]
[337574356,1725831105226,-500.0,0.00037028,7]
[337574357,1725831105254,-500.0,0.00037028,15]
[337574358,1725831105283,-500.0,0.00037028,7]
[337574359,1725831105311,-500.0,0.00037028,15]
[337574360,1725831105339,-500.0,0.00037028,7]
[337574361,1725831105366,-500.0,0.00037028,15]
[337574362,1725831105625,-500.0,0.00037028,7]
[337574363,1725831105654,-500.0,0.00037028,15]
[337574364,1725831105681,-500.0,0.00037028,15]
[337574365,1725831105712,-500.0,0.00037028,7]
[337574366,1725831105741,-500.0,0.00037028,7]
[337574367,1725831105769,-500.0,0.00037028,15]
[337574368,1725831105796,-500.0,0.00037028,15]
[337574369,1725831105823,-500.0,0.00037028,15]
[337574370,1725831105852,-500.0,0.00037028,7]
[337574371,1725831105879,-239.13471456,0.00037028,15]
[337574372,1725831105907,-500.0,0.00037028,7]
[337574373,1725831105934,-245.92630483,0.00037028,15]
[337574374,1725831106930,-254.07369517,0.00037028,15]
[337574375,1725831106959,-500.0,0.00037028,7]
[337574376,1725831106987,-500.0,0.00037028,15]
[337574377,1725831107015,-500.0,0.00037028,7]
[337574378,1725831107041,-500.0,0.00037028,15]
[337574379,1725831107068,-500.0,0.00037028,15]
[337574380,1725831107096,-500.0,0.00037028,7]
[337574381,1725831107123,-500.0,0.00037028,15]
[337574382,1725831107151,-500.0,0.00037028,7]
[337574383,1725831107180,-500.0,0.00037028,15]
[337574384,1725831107207,-500.0,0.00037028,7]
[337574385,1725831107233,-500.0,0.00037028,15]
[337574386,1725831107261,-500.0,0.00037028,7]
[337574387,1725831107297,-500.0,0.00037028,15]
[337574388,1725831107334,-500.0,0.00037028,7]
[337574389,1725831107363,-500.0,0.00037028,15]
[337574390,1725831107393,-536.28324164,0.00037028,7]
[337574391,1725831107421,-500.0,0.00037028,15]
[337574392,1725831107450,-500.0,0.00037028,7]
[337574393,1725831107478,-500.0,0.00037028,15]
[337574394,1725831107506,-500.0,0.00037028,7]
[337574395,1725831107534,-500.0,0.00037028,7]
[337574396,1725831107565,-500.0,0.00037028,7]
[337574397,1725831107597,-500.0,0.00037028,7]
[337574398,1725831107625,-500.0,0.00037028,7]
[337574399,1725831107655,-500.0,0.00037028,7]
[337574400,1725831107686,-500.0,0.00037028,7]
[337574401,1725831107715,-500.0,0.00037028,15]
[337574402,1725831107743,-500.0,0.00037028,15]
[337574403,1725831107770,-500.0,0.00037028,15]
[337574404,1725831107800,-500.0,0.00037028,7]
[337574405,1725831107828,-500.0,0.00037028,7]
[337574406,1725831107857,-500.0,0.00037028,7]
[337574407,1725831107886,-500.0,0.00037028,7]
[337574408,1725831107916,-500.0,0.00037028,7]
[337574409,1725831107946,-500.0,0.00037028,7]
[337574410,1725831107974,-500.0,0.00037028,7]
[337574411,1725831108002,-500.0,0.00037028,7]
[337574412,1725831108030,-500.0,0.00037028,7]
[337574413,1725831108057,-500.0,0.00037028,7]
[337574414,1725831108085,-350.0,0.00037028,7]
[337574415,1725831108113,-500.0,0.00037028,7]
[337574416,1725831108139,-166.926462,0.00037839,2]
[337574417,1725831108179,-166.926462,0.00037839,120]
[337574418,1725831108205,-1539.83781036,0.00039546,2]
[337574419,1725831152534,500.0,0.00037039,2]
[337574420,1725831202734,278.95827,0.0003859,2]
[337574421,1725831202939,278.95827,0.000386,2]
[337574422,1725831203204,278.95827,0.0003861,2]
[337574423,1725831203391,278.95827,0.00038621,2]
[337574424,1725831203606,278.95827,0.00038631,2]
[337574425,1725831203827,278.95827,0.00038641,2]
[337574426,1725831204027,278.95827,0.00038651,2]
[337574427,1725831204288,33.24443883,0.00038661,2]
[337574428,1725831204315,245.71383117,0.00038661,2]
[337574429,1725831204510,278.95827,0.00038671,2]
[337574430,1725831204742,278.95827,0.00038682,2]
[337574431,1725831204938,278.95827,0.00038692,2]
[337574432,1725831205164,278.95827,0.00038702,2]
[337574433,1725831205406,278.95827,0.00038712,2]
[337574434,1725831205839,278.95827,0.00038722,2]
[337574435,1725831206076,278.95827,0.00038732,2]
[337574436,1725831206322,278.95827,0.00038743,2]
[337574437,1725831206533,278.95827,0.00038753,2]
[337574438,1725831206759,278.95827,0.00038763,2]
[337574439,1725831206971,278.95827,0.00038773,2]
[337574440,1725831207185,278.95827,0.00038783,2]
[337574448,1725831354976,9935.22734421,0.0004,2]
[337574455,1725831450294,412.0304548,0.00038196,2]
[337574458,1725831513866,11059.52912982,0.00038196,2]
[337574459,1725831513902,12183.66046398,0.00038196,2]
[337574461,1725831607721,465.01662569,0.00038417,2]
[337574502,1725832167154,-550.0,0.0004011,30]
[337574503,1725832167182,-284.18629329,0.00040111,2]
[337574504,1725832215946,3952.0022181,0.00037608,62]
[337574538,1725832232221,-550.0,0.0004011,30]
[337574540,1725832232232,-311.0,0.00040111,2]
[337574542,1725832232243,-18151.91132141,0.00040111,2]
[337574544,1725832232254,-280.206077,0.00040383,2]
[337574546,1725832232263,-770.0,0.00044121,30]
[337574548,1725832232273,-1896.18808005,0.00045,60]
[337574551,1725832232524,-2680.79781249,0.00045,60]
[337574557,1725832238293,-5423.01410746,0.00045,60]
[337574558,1725832238303,-1387.72831692,0.00046475,28]
[337574559,1725832238312,-3719.90771672,0.00046575,2]
[337574560,1725832238322,-1387.7283169,0.00047493,28]
[337574561,1725832238332,-208.0,0.00047968,2]
[337574562,1725832238341,-500.0,0.00047968,120]
[337574563,1725832238354,-500.0,0.00047968,120]
[337574564,1725832238364,-175.0,0.00047968,120]
[337574565,1725832238374,-500.0,0.00047968,120]
[337574566,1725832238384,-500.0,0.00047968,7]
[337574567,1725832238396,-446.52359611,0.00047968,120]
[337574568,1725832238406,-500.0,0.00047968,7]
[337574569,1725832238418,-510.13774527,0.00047968,7]
[337574570,1725832238428,-500.0,0.00047968,7]
[337574571,1725832238440,-500.0,0.00047968,120]
[337574572,1725832238451,-500.0,0.00047968,7]
[337574573,1725832238462,-500.0,0.00047968,7]
[337574574,1725832238471,-2500.0,0.00047969,2]
[337574575,1725832238481,-2500.0,0.00047977,2]
[337574576,1725832238491,-2500.0,0.00047986,2]
[337574577,1725832238502,-2500.0,0.00047995,2]
[337574578,1725832238514,-1077.0,0.00048533,30]
[337574579,1725832238526,-689.249557,0.00048545,14]
[337574580,1725832238537,-272.06538121,0.00049,2]
[337574581,1725832238548,-153.0,0.00049017,2]
[337574582,1725832238558,-208.2062936,0.00049017,2]
[337574583,1725832238568,-153.0,0.00049017,2]
[337574584,1725832238583,-416.3671104,0.00049017,2]
[337574585,1725832238593,-153.0,0.00049017,2]
[337574586,1725832238605,-153.0,0.00049017,2]
[337574587,1725832238615,-306.0,0.00049017,2]
[337574588,1725832238625,-306.0,0.00049017,2]
[337574589,1725832238635,-306.0,0.00049017,2]
[337574590,1725832238645,-306.0,0.00049017,2]
[337574591,1725832238655,-160.0,0.00049172,3]
[337574592,1725832238666,-158.89322808,0.00049184,2]
[337574593,1725832238675,-158.89322806,0.00049184,2]
[337574594,1725832238684,-158.89322806,0.00049185,2]
[337574595,1725832238694,-158.89322806,0.00049185,2]
[337574596,1725832238704,-158.89322806,0.00049185,2]
[337574597,1725832238713,-262.19414843,0.00049194,31]
[337574598,1725832238723,-337.63207698,0.00049194,120]
[337574599,1725832238732,-530.43699354,0.00049194,120]
[337574600,1725832238742,-500.0,0.00049194,120]
[337574601,1725832238752,-500.0,0.00049194,120]
[337574602,1725832238760,-589.03613635,0.00049194,120]
[337574603,1725832238770,-500.0,0.00049194,120]
[337574604,1725832238779,-150441.44110077,0.00049195,6]
[337574610,1725832240336,-1387.7283169,0.0004851,28]
[337574611,1725832240345,-34998.24947023,0.00049195,6]
[337574612,1725832240355,-6355.82193874,0.00049195,6]
[337574613,1725832240366,-88888.0,0.00049205,120]
[337574614,1725832240375,-217.90320838,0.00049215,120]
[337574615,1725832240385,-218.4,0.00049215,120]
[337574616,1725832240394,-158.61142428,0.00049215,120]
[337574617,1725832240404,-158.61142428,0.00049215,120]
[337574618,1725832240414,-158.61142428,0.00049215,120]
[337574619,1725832240424,-158.61142428,0.00049215,120]
[337574620,1725832240434,-158.61142428,0.00049215,120]
[337574621,1725832240443,-158.61142428,0.00049215,120]
[337574622,1725832240452,-158.61142428,0.00049215,120]
[337574623,1725832240462,-158.61142428,0.00049215,120]
[337574624,1725832240471,-158.61142428,0.00049215,120]
[337574625,1725832240480,-158.61142428,0.00049215,120]
[337574626,1725832240489,-162.93536799,0.00049215,120]
[337574627,1725832240499,-162.93536799,0.00049215,120]
[337574628,1725832240509,-162.93536799,0.00049215,120]
[337574629,1725832240520,-162.93536799,0.00049215,120]
[337574630,1725832240529,-162.93536799,0.00049215,120]
[337574631,1725832240543,-162.93536799,0.00049215,120]
[337574632,1725832240554,-162.93536799,0.00049215,120]
[337574633,1725832240563,-162.93536799,0.00049215,120]
[337574634,1725832240573,-163.43,0.00049215,120]
[337574635,1725832240586,-293.35866239,0.00049215,120]
[337574636,1725832240596,-293.35866239,0.00049215,120]
[337574637,1725832240606,-293.35866239,0.00049215,120]
[337574638,1725832240617,-293.35866239,0.00049215,120]
[337574639,1725832240628,-293.35866239,0.00049215,120]
[337574640,1725832240638,-293.35866239,0.00049215,120]
[337574641,1725832240651,-293.35866239,0.00049215,120]
[337574642,1725832240664,-293.35866239,0.00049215,120]
[337574643,1725832240677,-293.35866239,0.00049215,120]
[337574644,1725832240688,-293.35866239,0.00049215,120]
[337574645,1725832240697,-293.35866239,0.00049215,120]
[337574646,1725832240707,-293.35866239,0.00049215,120]
[337574647,1725832240719,-293.35866239,0.00049215,120]
[337574648,1725832240730,-293.35866239,0.00049215,120]
[337574649,1725832240742,-293.35866239,0.00049215,120]
[337574650,1725832240752,-293.35866239,0.00049215,120]
[337574651,1725832240762,-293.35866239,0.00049215,120]
[337574652,1725832240772,-293.35866239,0.00049215,120]
[337574653,1725832240782,-293.35866239,0.00049215,120]
[337574654,1725832240791,-3596.1281464,0.00049275,61]
[337574655,1725832240801,-185439.690571,0.00049275,6]
[337574656,1725832240810,-2610.05594301,0.00049275,6]
[337574694,1725832752590,10000.0,0.00040862,30]
[337574696,1725832785835,5591.0,0.00040862,30]
[337574700,1725833088417,499.0,0.00040885,30]
[337574701,1725833110168,3095.83656171,0.00040885,30]
[337574711,1725833362149,-163.438529,0.00040335,2]
[337574712,1725833362170,-550.0,0.00040884,30]
[337574713,1725833362191,-261.42638271,0.00040885,30]
[337574714,1725833362212,-1938.90656526,0.00040885,30]
[337574755,1725833432298,-2600.10391289,0.00046575,2]
[337574756,1725833432308,-867.33019808,0.00049115,28]
[337574757,1725833432318,-550.0,0.00049143,30]
[337574758,1725833432328,-500.0,0.00049144,120]
[337574759,1725833432341,-334.45974948,0.00049144,7]
[337574760,1725833432351,-489.14916592,0.00049144,120]
[337574761,1725833432361,-416.0,0.00049145,2]
[337574762,1725833432371,-56453.36916434,0.00049145,120]
[337574763,1725833432482,-433.25,0.00049145,120]
[337574827,1725833440370,-2143.9823424,0.00049145,120]
[337574932,1725834418137,-197.31,0.00040902,30]
[337574933,1725834418162,-45.63707801,0.00043367,2]
[337574937,1725834478223,8399.32069223,0.00039,2]
[337574938,1725834478250,19144.24746386,0.00039,2]
[337574939,1725834484297,5855.75253614,0.0002497,2]
[337574940,1725834484324,25000.0,0.0002497,2]
[337574941,1725834484350,25000.0,0.0002497,2]
[337574942,1725834484383,3151.93752743,0.0002497,2]
[337574943,1725834497703,1870.54660352,0.00025,2]
[337574944,1725834518888,19977.51586905,0.000275,2]
[337574945,1725834518916,23958.85295207,0.000275,2]
[337574946,1725834519235,10171.37797017,0.00021,2]
[337574947,1725834520791,1500.0,0.0003,2]
[337574948,1725834520953,122048.49980995,0.0002509,2]
[337574949,1725834520986,916.4429274,0.00023,2]
[337574950,1725834521024,11452.16005844,0.00020377,2]
[337574951,1725834521997,5790.599935,0.00014,2]
[337574952,1725834522426,73127.53282668,0.0002,2]
[337574953,1725834522777,11689.1432076,0.00025,2]
[337574954,1725834524692,2530.36799528,0.00027,2]
[337575007,1725834632535,-400.0,0.00034999,2]
[337575009,1725834632546,-10411.38518157,0.00035,2]
[337575011,1725834632556,-441.88302,0.0003557,2]
[337575013,1725834632565,-166.66666666,0.00038399,2]
[337575014,1725834632575,-560.0,0.00038499,30]
[337575016,1725834632585,-208.0,0.0004,2]
[337575018,1725834632595,-2939.40501372,0.0004,2]
[337575045,1725834638584,-1915.86292473,0.0004,2]
[337575046,1725834638594,-794.46614032,0.00040781,2]
[337575047,1725834638604,-333.16747457,0.0004088,31]
[337575048,1725834638614,-395.1481331,0.0004088,31]
[337575049,1725834638625,-500.0,0.0004088,31]
[337575050,1725834638634,-500.0,0.0004088,31]
[337575051,1725834638644,-645.99499378,0.0004088,31]
[337575052,1725834638653,-500.0,0.0004088,31]
[337575053,1725834638662,-500.0,0.0004088,31]
[337575054,1725834638672,-500.0,0.0004088,7]
[337575055,1725834638681,-175.0,0.0004088,31]
[337575056,1725834638690,-500.0,0.0004088,31]
[337575057,1725834638700,-500.0,0.0004088,31]
[337575058,1725834638709,-500.0,0.0004088,7]
[337575059,1725834638719,-500.0,0.0004088,31]
[337575060,1725834638728,-500.0,0.0004088,7]
[337575061,1725834638737,-500.0,0.0004088,31]
[337575062,1725834638746,-193.26217593,0.0004088,31]
[337575063,1725834638756,-500.0,0.0004088,7]
[337575064,1725834638766,-500.0,0.0004088,31]
[337575065,1725834638775,-500.0,0.0004088,31]
[337575066,1725834638785,-500.0,0.0004088,7]
[337575067,1725834638795,-500.0,0.0004088,31]
[337575068,1725834638805,-557.84762874,0.0004088,31]
[337575069,1725834638815,-500.0,0.0004088,7]
[337575070,1725834638824,-500.0,0.0004088,7]
[337575071,1725834638833,-559.12397074,0.0004088,7]
[337575072,1725834638843,-500.0,0.0004088,31]
[337575073,1725834638852,-89092.11747531,0.00040881,2]
[337575074,1725834638861,-6435.85243353,0.00040881,2]
[337575075,1725834638870,-4142.85080225,0.00040881,2]
[337575076,1725834638879,-4113.6970935,0.00040881,2]
[337575077,1725834638889,-10076.61906532,0.00040881,2]
[337575078,1725834638898,-9813.93038995,0.00040881,2]
[337575079,1725834638908,-18969.80856115,0.00040881,2]
[337575080,1725834638917,-12910.40999597,0.00040881,2]
[337575081,1725834638926,-16091.76278512,0.00040881,2]
[337575082,1725834638935,-10034.90211098,0.00040881,2]
[337575083,1725834638944,-153517.87638803,0.00040881,2]
[337575084,1725834638954,-17968.72876149,0.00040881,2]
[337575085,1725834638963,-4043.34102809,0.00040881,2]
[337575086,1725834638972,-150.0,0.00042349,30]
[337575088,1725834638982,-2954.36292199,0.00043367,2]
[337575089,1725834638990,-7455.86021062,0.00045,2]
[337575090,1725834639000,-503.79102748,0.00045,8]
[337575092,1725834639009,-503.79102748,0.0004545,8]
[337575093,1725834639018,-503.79102748,0.000459,8]
[337575095,1725834639027,-503.79102748,0.0004635,8]
[337575097,1725834639037,-2937.1984471,0.00046575,2]
[337575099,1725834639048,-503.79102748,0.000468,8]
[337575101,1725834639057,-689.249557,0.00046835,12]
[337575102,1725834639066,-504.89702507,0.0004725,8]
[337575104,1725834639075,-2500.0,0.00048808,2]
[337575106,1725834639085,-2500.0,0.00048817,2]
[337575107,1725834639094,-2500.0,0.00048825,2]
[337575108,1725834639103,-5738.73003779,0.00049,61]
[337575109,1725834639111,-206.23065843,0.00049,10]
[337575110,1725834639122,-36125.90539162,0.00049,7]
[337575111,1725834639134,-886.53104571,0.00049,2]
[337575112,1725834639143,-153.0,0.00049083,2]
[337575113,1725834639153,-153.0,0.00049083,2]
[337575114,1725834639162,-306.0,0.00049083,2]
[337575115,1725834639171,-153.0,0.00049083,2]
[337575116,1725834639181,-153.0,0.00049083,2]
[337575117,1725834639190,-153.0,0.00049083,2]
[337575118,1725834639200,-153.0,0.00049083,2]
[337575119,1725834639209,-153.0,0.00049083,2]
[337575120,1725834639219,-416.3216336,0.00049083,2]
[337575121,1725834639228,-208.2062936,0.00049083,2]
[337575122,1725834639237,-306.0,0.00049083,2]
[337575123,1725834639246,-272.06538121,0.00049145,2]
[337575124,1725834639256,-160.0,0.00049172,3]
[337575125,1725834639265,-3596.1281464,0.00049175,61]
[337575126,1725834639274,-384702.034287,0.00049175,6]
[337575127,1725834639284,-14909.0398617,0.00049175,6]
[337575128,1725834639294,-14909.0398617,0.00049185,6]
[337575129,1725834639305,-151.0,0.00049195,120]
[337575130,1725834639314,-9939.35990778,0.00049195,6]
[337575131,1725834639323,-151.0,0.00049205,120]
[337575132,1725834639332,-88888.0,0.00049205,120]
[337575133,1725834639341,-155.75047225,0.00049205,120]
[337575134,1725834639352,-155.75047225,0.00049205,120]
[337575135,1725834639362,-155.75047225,0.00049205,120]
[337575136,1725834639371,-155.75047225,0.00049205,120]
[337575137,1725834639381,-155.75047225,0.00049205,120]
[337575138,1725834639391,-155.75047225,0.00049205,120]
[337575139,1725834639400,-155.75047225,0.00049205,120]
[337575140,1725834639410,-155.75047225,0.00049205,120]
[337575141,1725834639420,-155.75047225,0.00049205,120]
[337575142,1725834639430,-156.25,0.00049205,120]
[337575143,1725834639440,-311.57594451,0.00049205,120]
[337575144,1725834639450,-311.57594451,0.00049205,120]
[337575145,1725834639460,-311.57594451,0.00049205,120]
[337575146,1725834639469,-311.57594451,0.00049205,120]
[337575147,1725834639479,-311.57594451,0.00049205,120]
[337575148,1725834639489,-311.57594451,0.00049205,120]
[337575149,1725834639499,-311.57594451,0.00049205,120]
[337575150,1725834639509,-311.57594451,0.00049205,120]
[337575151,1725834639519,-311.57594451,0.00049205,120]
[337575152,1725834639529,-311.57594451,0.00049205,120]
[337575153,1725834639539,-311.57594451,0.00049205,120]
[337575154,1725834639549,-311.57594451,0.00049205,120]
[337575155,1725834639560,-311.57594451,0.00049205,120]
[337575156,1725834639569,-311.57594451,0.00049205,120]
[337575157,1725834639579,-311.57594451,0.00049205,120]
[337575158,1725834639589,-311.57594451,0.00049205,120]
[337575159,1725834639599,-311.57594451,0.00049205,120]
[337575160,1725834639609,-311.57594451,0.00049205,120]
[337575161,1725834639618,-311.57594451,0.00049205,120]
[337575162,1725834639628,-152.7519075,0.00049205,120]
[337575163,1725834639637,-152.7519075,0.00049205,120]
[337575164,1725834639647,-152.7519075,0.00049205,120]
[337575165,1725834639657,-152.7519075,0.00049205,120]
[337575166,1725834639666,-152.7519075,0.00049205,120]
[337575167,1725834639676,-152.7519075,0.00049205,120]
[337575168,1725834639686,-152.7519075,0.00049205,120]
[337575169,1725834639697,-152.7519075,0.00049205,120]
[337575170,1725834639707,-152.7519075,0.00049205,120]
[337575171,1725834639719,-152.7519075,0.00049205,120]
[337575172,1725834639729,-153.25,0.00049205,120]
[337575173,1725834639739,-336.12919649,0.00049205,120]
[337575174,1725834639749,-336.12919649,0.00049205,120]
[337575175,1725834639759,-336.12919649,0.00049205,120]
[337575176,1725834639768,-336.12919649,0.00049205,120]
[337575177,1725834639777,-336.12919649,0.00049205,120]
[337575178,1725834639787,-336.12919649,0.00049205,120]
[337575179,1725834639798,-336.12919649,0.00049205,120]
[337575180,1725834639808,-336.12919649,0.00049205,120]
[337575181,1725834639817,-336.12919649,0.00049205,120]
[337575182,1725834639827,-336.12919649,0.00049205,120]
[337575183,1725834639837,-336.12919649,0.00049205,120]
[337575184,1725834639847,-336.12919649,0.00049205,120]
[337575185,1725834639857,-336.12919649,0.00049205,120]
[337575186,1725834639866,-336.12919649,0.00049205,120]
[337575187,1725834639876,-336.12919649,0.00049205,120]
[337575188,1725834639886,-312.07,0.00049215,120]
[337575189,1725834639895,-188.50365717,0.00049244,120]
[337575190,1725834639905,-151.0,0.00049295,120]
[337575191,1725834639914,-166.151694,0.00049295,120]
[337575192,1725834639923,-166.151694,0.00049295,120]
[337575193,1725834639933,-151.0,0.00049295,120]
[337575194,1725834639942,-151.0,0.00049295,120]
[337575195,1725834639952,-151.0,0.00049295,120]
[337575196,1725834639961,-151.0,0.00049295,120]
[337575197,1725834639971,-154.387509,0.00049295,120]
[337575198,1725834639980,-154.253951,0.00049295,120]
[337575199,1725834639989,-151.0,0.00049295,120]
[337575200,1725834639998,-154.253951,0.00049295,120]
[337575201,1725834640008,-151.0,0.00049295,120]
[337575202,1725834640017,-151.0,0.00049295,120]
[337575203,1725834640026,-301.27835,0.00049295,120]
[337575204,1725834640036,-301.27835,0.00049295,120]
[337575205,1725834640048,-168.321004,0.00049295,120]
[337575206,1725834640058,-168.321004,0.00049295,120]
[337575207,1725834640068,-151.0,0.00049295,120]
[337575208,1725834640077,-151.0,0.00049295,120]
[337575209,1725834640086,-207.821772,0.00049295,120]
[337575210,1725834640096,-264.272831,0.00049295,120]
[337575211,1725834640105,-207.821772,0.00049295,120]
[337575212,1725834640117,-264.272831,0.00049295,120]
[337575213,1725834640130,-151.0,0.00049295,120]
[337575214,1725834640140,-417.612294,0.00049295,120]
[337575215,1725834640149,-417.612294,0.00049295,120]
[337575216,1725834640158,-151.0,0.00049295,120]
[337575217,1725834640167,-151.0,0.00049295,120]
[337575218,1725834640177,-151.0,0.00049295,30]
[337575219,1725834640186,-151.0,0.00049295,30]
[337575220,1725834640195,-183.288585,0.00049295,120]
[337575221,1725834640204,-183.288585,0.00049295,120]
[337575222,1725834640213,-151.0,0.00049295,120]
[337575223,1725834640223,-156.783267,0.00049295,120]
[337575224,1725834640232,-156.783267,0.00049295,120]
[337575225,1725834640244,-150.112233,0.000493,14]
[337575226,1725834640254,-150.112235,0.000493,13]
[337575227,1725834640263,-515.37806798,0.00049304,2]
[337575228,1725834640273,-151.0,0.00049305,120]
[337575230,1725834640282,-151.0,0.00049305,120]
[337575231,1725834640291,-261.404356,0.00049305,120]
[337575232,1725834640302,-261.404356,0.00049305,120]
[337575233,1725834640311,-885.44206637,0.00049305,6]
[337575234,1725834640359,-58750.71738033,0.00049305,6]
[337575235,1725834640369,-2330.44443835,0.00049314,2]
[337575236,1725834640378,-151.0,0.00049315,120]
[337575237,1725834640387,-151.0,0.00049315,120]
[337575238,1725834640396,-500.0,0.00049315,120]
[337575239,1725834640405,-500.0,0.00049315,120]
[337575240,1725834640414,-500.0,0.00049315,120]
[337575241,1725834640423,-503.90368232,0.00049315,120]